bitfinex/quotes_SOLUSD_20220130
["timestamp","ask_amount","ask_price","bid_price","bid_amount"]
[1643550922997,1.44585382,95.124,95.048,105.3]
[1643550923198,1.44585382,95.125,95.048,105.3]
[1643550923398,1.44585382,95.125,95.049,0.25]
[1643550923597,1.44585382,95.126,95.049,0.25]
[1643550923798,1.44585382,95.13,95.057,6.0]
[1643550923998,1.44585382,95.131,95.058,22.5006]
[1643550924197,1.44585382,95.131,95.058,22.7506]
[1643550924398,1.44585382,95.132,95.058,22.7506]
[1643550924598,1.44585382,95.129,95.058,22.5006]
[1643550925200,1.44585382,95.128,95.058,22.5006]
[1643550925400,1.44585382,95.127,95.058,22.5006]
[1643550926798,1.44585382,95.127,95.059,0.25]
[1643550927200,1.44585382,95.128,95.059,0.25]
[1643550927600,1.44585382,95.127,95.059,0.25]
[1643550927801,4.40254524,95.127,95.059,0.25]
[1643550928005,1.44585382,95.126,95.032,1.45950479]
[1643550928202,1.44585382,95.123,95.034,0.25]
[1643550928606,2.95669142,95.122,95.034,0.25]
[1643550929407,1.44585382,95.123,95.031,0.25]
[1643550929611,1.44585382,95.123,95.04,6.0]
[1643550929806,1.44585382,95.124,95.041,129.3209]
[1643550930006,1.44585382,95.125,95.041,23.7709]
[1643550930207,1.44585382,95.123,95.041,23.7709]
[1643550930409,1.44585382,95.122,95.041,23.7709]
[1643550930618,1.44585382,95.121,95.041,23.7709]
[1643550931310,1.44585382,95.122,95.042,0.25]
[1643550931610,1.44585382,95.121,95.042,0.25]
[1643550931835,1.44585382,95.122,95.042,0.25]
[1643550932207,1.44585382,95.123,95.042,0.25]
[1643550932408,1.44585382,95.124,95.042,0.25]
[1643550932608,24.9512,95.126,95.042,0.25]
[1643550932609,1.44585382,95.122,95.042,0.25]
[1643550934010,1.44585382,95.124,95.042,0.25]
[1643550934511,1.44585382,95.121,95.042,0.25]
[1643550934713,1.44585382,95.12,95.042,0.25]
[1643550935114,1.44585382,95.121,95.042,0.25]
[1643550935318,1.44585382,95.12,95.042,0.25]
[1643550935822,1.44585382,95.123,95.042,105.55]
[1643550936019,1.44585382,95.123,95.052,111.3]
[1643550936219,1.44585382,95.125,95.042,0.25]
[1643550936420,24.9512,95.126,95.042,0.25]
[1643550936421,1.44585382,95.124,95.042,0.25]
[1643550936620,1.44585382,95.12,95.042,0.25]
[1643550936921,24.9512,95.126,95.042,0.25]
[1643550936922,1.44585382,95.116,95.042,0.25]
[1643550937122,1.44585382,95.115,95.042,0.25]
[1643550937322,1.44585382,95.116,95.03,15.781]
[1643550937522,1.44585382,95.11,95.02,1.45950479]
[1643550937723,1.44585382,95.108,95.018,106.75950479]
[1643550937925,39.86005737,95.109,95.028,105.3]
[1643550938524,39.86005737,95.109,95.038,6.0]
[1643550938823,39.86005737,95.109,95.039,22.8931]
[1643550940042,39.86005737,95.109,95.04,105.3]
[1643550940443,39.86005737,95.109,95.041,0.25]
[1643550940644,39.86005737,95.109,95.039,22.8931]
[1643550940845,39.86005737,95.109,95.04,105.3]
[1643550941042,39.86005737,95.109,95.039,22.8931]
[1643550941443,39.86005737,95.109,95.039,22.6431]
[1643550941743,1.44585382,95.102,95.039,22.6431]
[1643550941943,1.44585382,95.102,95.016,446.19098046]
[1643550942143,1.44585382,95.099,95.026,6.0]
[1643550942544,1.44585382,95.099,95.027,6.0]
[1643550942744,1.44585382,95.097,95.027,6.0]
[1643550942944,1.44585382,95.098,95.028,24.7521]
[1643550943144,2.95669142,95.096,95.028,24.5021]
[1643550943544,4.40254524,95.096,95.028,24.5021]
[1643550943945,4.40254524,95.095,95.028,24.5021]
[1643550944346,2.95669142,95.095,95.028,24.5021]
[1643550944747,1.44585382,95.094,95.028,24.5021]
[1643550945548,4.40254524,95.095,95.028,24.5021]
[1643550945746,2.95669142,95.095,95.028,24.5021]
[1643550946746,1.44585382,95.097,95.028,24.5021]
[1643550946946,39.86005737,95.109,95.028,24.5021]
[1643550946947,1.44585382,95.098,95.028,24.5021]
[1643550947952,2.95669142,95.097,95.028,24.5021]
[1643550949656,23.3019,95.096,95.028,24.5021]
[1643550950856,23.3019,95.096,95.029,0.25]
[1643550951258,23.3019,95.096,95.028,24.5021]
[1643550951457,2.95669142,95.095,95.028,24.5021]
[1643550951658,23.3019,95.096,95.028,24.5021]
[1643550957763,2.95669142,95.095,95.007,1.45950479]
[1643550957963,2.95669142,95.095,95.008,23.1823]
[1643550958163,2.95669142,95.095,95.016,6.0]
[1643550959165,2.95669142,95.095,95.017,0.25]
[1643550959765,2.95669142,95.095,95.009,0.25]
[1643550960364,2.95669142,95.095,95.009,105.55]
[1643550962275,23.3019,95.096,95.009,105.55]
[1643550962473,23.3019,95.096,95.009,107.00950479]
[1643550962676,23.3019,95.096,95.009,105.55]
[1643550962875,23.3019,95.096,95.009,107.00950479]
[1643550963476,23.3019,95.096,95.009,105.55]
[1643550964276,23.3019,95.096,95.01,1.45950479]
[1643550964675,23.3019,95.096,95.011,0.25]
[1643550964876,2.95669142,95.095,95.011,0.25]
[1643550965896,2.95669142,95.095,95.009,1.70950479]
[1643550966097,15.79,95.09,95.01,1.45950479]
[1643550966295,15.79,95.09,95.008,23.1823]
[1643550966499,17.23585382,95.09,95.008,23.1823]
[1643550966695,2.95669142,95.089,95.008,23.1823]
[1643550967095,4.40254524,95.089,95.008,23.1823]
[1643550967496,2.95669142,95.088,95.008,23.1823]
[1643550968097,15.792,95.08,95.008,23.1823]
[1643550968297,32.84103308,95.079,95.008,23.1823]
[1643550968497,56.08253308,95.079,95.008,23.1823]
[1643550969597,56.08253308,95.079,95.009,0.25]
[1643550969797,56.08253308,95.079,95.008,23.1823]
[1643550970399,56.08253308,95.079,95.008,24.64180479]
[1643550971401,56.08253308,95.079,95.009,1.45950479]
[1643550971802,56.08253308,95.079,95.01,0.25]
[1643550972204,56.08253308,95.079,95.01,1.70950479]
[1643550972402,56.08253308,95.079,95.011,1.45950479]
[1643550972602,56.08253308,95.079,95.01,1.70950479]
[1643550973303,56.08253308,95.079,95.01,1.45950479]
[1643550973503,56.08253308,95.079,95.009,1.45950479]
[1643550973903,56.08253308,95.079,95.008,24.64180479]
[1643550974303,56.08253308,95.079,95.008,23.1823]
[1643550974504,56.08253308,95.079,95.009,1.70950479]
[1643550976106,56.08253308,95.079,95.009,0.25]
[1643550977507,56.08253308,95.079,95.008,23.1823]
[1643550980710,56.08253308,95.079,95.009,0.25]
[1643550981310,1.44585382,95.088,95.009,0.25]
[1643550981511,1.44585382,95.098,95.018,6.0]
[1643550981709,27.42972626,95.125,95.019,25.04290479]
[1643550981710,1.44585382,95.103,95.019,25.04290479]
[1643550981912,1.44585382,95.104,95.02,105.3]
[1643550982109,1.44585382,95.104,95.03,6.0]
[1643550982308,43.80394569,95.104,95.031,0.25]
[1643550982509,43.80394569,95.104,95.035,6.0]
[1643550982909,43.80394569,95.104,95.036,0.25]
[1643550984910,1.44585382,95.11,95.041,6.0]
[1643550985110,15.785,95.12,95.041,6.0]
[1643550985111,1.44585382,95.111,95.042,23.5391]
[1643550985310,1.44585382,95.111,95.042,23.7891]
[1643550985914,37.31165347,95.11,95.042,23.7891]
[1643550986514,23.8139,95.109,95.042,23.7891]
[1643550989521,2.95669142,95.108,95.042,23.7891]
[1643550991921,15.789,95.1,95.042,23.5391]
[1643550998225,15.789,95.1,95.043,0.25]
[1643550998824,15.789,95.1,95.042,23.5391]
[1643550999853,23.8139,95.109,95.042,23.5391]
[1643551001051,23.8139,95.109,95.043,0.25]
[1643551002657,23.8139,95.109,95.042,23.5391]
[1643551002854,2.95669142,95.108,95.042,23.5391]
[1643551003054,1.44585382,95.106,95.012,1.45950479]
[1643551003253,1.44585382,95.106,95.013,24.8721]
[1643551003454,1.44585382,95.101,95.013,24.8721]
[1643551003656,1.44585382,95.1,95.013,24.8721]
[1643551003853,4.40254524,95.1,95.013,24.8721]
[1643551004053,4.40254524,95.099,95.023,6.0]
[1643551004254,4.40254524,95.099,95.024,0.25]
[1643551004454,25.25975382,95.109,95.024,25.0031]
[1643551004655,25.25975382,95.109,95.024,24.7531]
[1643551004855,108.25669142,95.108,95.025,0.25]
[1643551005057,1.44585382,95.105,95.024,24.7531]
[1643551005260,1.44585382,95.103,95.024,24.7531]
[1643551005456,1.44585382,95.102,95.009,23.2478]
[1643551005655,15.789,95.1,95.01,23.0761]
[1643551005856,1.44585382,95.099,95.01,23.0761]
[1643551006058,1.44585382,95.098,95.01,23.0761]
[1643551006257,28.97214524,95.098,95.01,23.0761]
[1643551006757,2.95669142,95.097,95.01,23.0761]
[1643551008055,15.791,95.09,95.01,23.0761]
[1643551009056,15.791,95.09,95.01,24.53560479]
[1643551009257,15.791,95.09,95.011,1.45950479]
[1643551009556,15.791,95.09,95.012,1.45950479]
[1643551009959,15.791,95.09,95.013,0.25]
[1643551010857,15.791,95.09,95.014,1.45950479]
[1643551011258,15.791,95.09,95.015,0.25]
[1643551011659,1.44585382,95.097,95.015,1.70950479]
[1643551011864,1.44585382,95.098,95.02,6.0]
[1643551012162,38.75750729,95.11,95.026,106.75950479]
[1643551012360,37.31165347,95.11,95.029,1.45950479]
[1643551012560,37.31165347,95.11,95.039,6.0]
[1643551012761,37.31165347,95.11,95.04,24.9812]
[1643551012963,37.31165347,95.11,95.04,25.2312]
[1643551015161,37.31165347,95.11,95.05,6.0]
[1643551015363,1.44585382,95.117,95.051,24.4002]
[1643551015563,1.44585382,95.119,95.061,6.0]
[1643551015761,1.44585382,95.119,95.051,24.4002]
[1643551015762,1.44585382,95.122,95.062,24.1502]
[1643551016162,1.44585382,95.122,95.063,0.25]
[1643551016362,1.44585382,95.123,95.063,0.25]
[1643551016562,44.93136809,95.122,95.063,0.25]
[1643551019367,23.349,95.121,95.041,24.9092]
[1643551019566,24.79485382,95.121,95.041,24.9092]
[1643551019765,1.44585382,95.12,95.041,24.9092]
[1643551020365,2.95669142,95.119,95.041,24.9092]
[1643551020767,4.40254524,95.119,95.041,24.9092]
[1643551021165,1.44585382,95.119,95.041,24.9092]
[1643551021366,2.95669142,95.118,95.041,24.9092]
[1643551021567,1.44585382,95.119,95.041,24.9092]
[1643551021767,1.44585382,95.119,95.042,0.25]
[1643551021968,1.44585382,95.116,95.042,0.25]
[1643551022368,1.44585382,95.117,95.042,0.25]
[1643551023071,1.44585382,95.118,95.042,0.25]
[1643551024270,1.44585382,95.117,95.051,6.0]
[1643551024471,1.44585382,95.118,95.052,22.6828]
[1643551024671,1.44585382,95.118,95.052,22.9328]
[1643551024873,1.44585382,95.119,95.053,0.25]
[1643551025596,1.44585382,95.131,95.063,105.3]
[1643551025776,1.44585382,95.138,95.064,23.9352]
[1643551025972,1.44585382,95.141,95.073,6.0]
[1643551026173,42.34661589,95.14,95.074,6.0]
[1643551026473,42.34661589,95.14,95.075,0.25]
[1643551026674,1.44585382,95.146,95.075,24.2085]
[1643551026873,1.44585382,95.146,95.075,30.2085]
[1643551027878,44.25185087,95.145,95.076,105.3]
[1643551028078,44.25185087,95.145,95.086,6.0]
[1643551028279,44.25185087,95.145,95.049,1.45950479]
[1643551028476,1.44585382,95.141,95.046,105.3]
[1643551028676,24.8772,95.144,95.059,6.0]
[1643551028677,1.44585382,95.137,95.059,6.0]
[1643551028877,1.44585382,95.137,95.06,23.0363]
[1643551029176,24.8772,95.144,95.07,6.0]
[1643551029177,1.44585382,95.143,95.07,6.0]
[1643551029377,1.44585382,95.143,95.071,23.0363]
[1643551029578,24.8772,95.144,95.081,6.0]
[1643551029778,24.8772,95.144,95.082,22.7885]
[1643551031577,24.8772,95.144,95.082,22.5385]
[1643551031778,24.8772,95.144,95.083,0.25]
[1643551031977,24.8772,95.144,95.082,22.5385]
[1643551032178,24.8772,95.144,95.083,0.25]
[1643551032777,44.25185087,95.145,95.083,0.25]
[1643551033676,44.25185087,95.145,95.082,22.5385]
[1643551034879,44.25185087,95.145,95.083,0.25]
[1643551045118,1.44585382,95.158,95.083,0.25]
[1643551045316,1.44585382,95.159,95.083,0.25]
[1643551045718,1.44585382,95.161,95.083,0.25]
[1643551045917,1.44585382,95.161,95.083,105.55]
[1643551046622,1.44585382,95.17,95.094,105.3]
[1643551046819,1.44585382,95.171,95.096,105.3]
[1643551047119,1.44585382,95.174,95.107,105.3]
[1643551047319,36.26336739,95.173,95.108,24.0661]
[1643551047520,36.26336739,95.173,95.109,105.3]
[1643551047922,1.44585382,95.177,95.11,0.25]
[1643551048121,1.44585382,95.177,95.119,6.0]
[1643551048319,1.44585382,95.18,95.12,23.3418]
[1643551048520,1.44585382,95.181,95.121,105.3]
[1643551048722,1.44585382,95.184,95.121,105.55]
[1643551049120,44.62828022,95.187,95.121,105.55]
[1643551050120,1.44585382,95.193,95.121,105.55]
[1643551050321,1.44585382,95.196,95.131,6.0]
[1643551050521,1.44585382,95.198,95.132,24.8601]
[1643551050722,1.44585382,95.198,95.132,25.1101]
[1643551050920,1.44585382,95.199,95.132,25.1101]
[1643551051120,34.51975138,95.198,95.132,25.1101]
[1643551051322,34.51975138,95.198,95.133,105.3]
[1643551051829,34.51975138,95.198,95.134,0.25]
[1643551053324,1.44585382,95.202,95.134,0.25]
[1643551053524,1.44585382,95.212,95.134,0.25]
[1643551053725,1.44585382,95.217,95.144,105.3]
[1643551053923,1.44585382,95.217,95.145,0.25]
[1643551054123,1.44585382,95.236,95.145,2.37229]
[1643551054327,37.6891566,95.244,95.146,105.3]
[1643551054524,37.6891566,95.244,95.15,15.76]
[1643551054727,37.6891566,95.244,95.151,105.3]
[1643551054924,37.6891566,95.244,95.151,105.55]
[1643551055125,37.6891566,95.244,95.151,107.67229]
[1643551055334,37.6891566,95.244,95.162,105.3]
[1643551055528,37.6891566,95.244,95.164,105.3]
[1643551055925,37.6891566,95.244,95.165,0.25]
[1643551056726,1.44585382,95.261,95.165,0.25]
[1643551057127,1.44585382,95.262,95.165,0.25]
[1643551057727,35.54463489,95.261,95.165,0.25]
[1643551059727,15.762,95.26,95.163,23.4969]
[1643551059927,105.3,95.259,95.163,23.4969]
[1643551060128,2.95669142,95.259,95.163,23.4969]
[1643551060328,4.40254524,95.259,95.163,23.4969]
[1643551060527,2.95669142,95.258,95.163,23.4969]
[1643551060929,15.765,95.24,95.12,15.766]
[1643551061128,15.765,95.24,95.093,1.45950479]
[1643551061328,15.765,95.24,95.085,47.6406]
[1643551061329,52.0126,95.239,95.087,3.58179479]
[1643551061531,1.44585382,95.236,95.085,47.6406]
[1643551061731,1.44585382,95.215,95.079,1.45950479]
[1643551061931,1.44585382,95.215,95.032,2.91114401]
[1643551061932,0.32096997,95.205,95.058,1.45950479]
[1643551062232,1.44585382,95.185,95.032,2.91114401]
[1643551062429,0.31471336,95.176,95.032,2.91114401]
[1643551062630,0.31471336,95.176,95.022,1.45950479]
[1643551062834,2.95669142,95.175,95.022,1.45950479]
[1643551063031,2.95669142,95.175,94.988,24.9284]
[1643551063032,1.44585382,95.169,95.012,1.45950479]
[1643551063229,1.44585382,95.169,94.989,2.89158683]
[1643551063230,1.44585382,95.166,95.01,1.45950479]
[1643551063632,9.68680271,95.165,95.01,1.45950479]
[1643551063835,1.44585382,95.163,95.006,1.45950479]
[1643551064032,15.786,95.16,95.007,1.45950479]
[1643551064232,15.786,95.16,95.006,1.45950479]
[1643551064432,15.786,95.16,95.005,1.45950479]
[1643551064735,28.76664829,95.159,95.005,1.45950479]
[1643551064932,28.76664829,95.159,95.006,23.9769]
[1643551065232,22.6879,95.167,95.007,105.3]
[1643551065233,105.3,95.157,95.007,105.3]
[1643551065631,20.59510916,95.156,95.007,105.3]
[1643551065834,33.549964,95.155,95.007,105.3]
[1643551066032,15.787,95.12,95.007,105.3]
[1643551066232,39.15112645,95.119,95.007,105.3]
[1643551066834,39.15112645,95.119,95.006,23.7269]
[1643551067136,108.25669142,95.118,95.001,23.921]
[1643551067339,135.58191187,95.118,95.001,23.921]
[1643551067635,20.59510916,95.117,95.001,23.921]
[1643551067838,30.28191187,95.117,95.001,23.921]
[1643551068037,15.787,95.11,95.001,23.921]
[1643551068638,15.787,95.11,95.002,105.3]
[1643551068838,15.787,95.11,95.002,105.55]
[1643551069638,15.787,95.11,95.002,0.25]
[1643551069941,15.792,95.08,95.002,0.25]
[1643551070137,33.549964,95.079,95.002,0.25]
[1643551072245,33.549964,95.079,94.988,105.3]
[1643551073647,33.549964,95.079,94.998,6.0]
[1643551073845,33.549964,95.079,94.999,0.25]
[1643551074046,33.549964,95.079,94.999,6.25]
[1643551074468,33.549964,95.079,94.999,0.25]
[1643551075173,33.549964,95.079,94.99,0.25]
[1643551078469,15.794,95.07,94.99,0.25]
[1643551078869,33.549964,95.079,94.99,0.25]
[1643551079472,33.549964,95.079,94.999,6.0]
[1643551079772,33.549964,95.079,95.0,0.25]
[1643551080774,1.44585382,95.159,95.0,16.036]
[1643551080974,45.7765,95.172,95.001,2.12260306]
[1643551081173,2.95669142,95.131,95.001,27.03850306]
[1643551081474,2.95669142,95.131,95.011,6.0]
[1643551081674,34.25219056,95.13,95.012,129.6097]
[1643551081876,34.25219056,95.13,95.012,129.8597]
[1643551082076,50.03619056,95.13,95.023,105.3]
[1643551082377,2.95669142,95.129,95.024,0.25]
[1643551082579,2.95669142,95.129,95.033,6.0]
[1643551082779,2.95669142,95.129,95.034,0.25]
[1643551082977,2.95669142,95.129,95.034,23.7072]
[1643551083377,2.95669142,95.129,95.044,6.0]
[1643551083778,2.95669142,95.129,95.045,0.25]
[1643551083979,50.03619056,95.13,95.045,0.25]
[1643551083980,34.25219056,95.13,95.045,105.55]
[1643551084380,34.25219056,95.13,95.055,6.0]
[1643551084780,34.25219056,95.13,95.056,0.25]
[1643551085078,34.25219056,95.13,95.056,105.55]
[1643551085478,34.25219056,95.13,95.066,6.0]
[1643551085680,34.25219056,95.13,95.067,105.3]
[1643551085980,34.25219056,95.13,95.067,105.55]
[1643551086881,34.25219056,95.13,95.077,6.0]
[1643551087083,15.778,95.16,95.077,6.0]
[1643551087282,2.95669142,95.164,95.078,0.25]
[1643551087683,2.95669142,95.164,95.078,6.25]
[1643551088083,36.55198926,95.163,95.078,6.25]
[1643551089492,2.95669142,95.162,95.078,6.0]
[1643551090993,2.95669142,95.162,95.079,0.25]
[1643551092399,15.778,95.16,95.079,0.25]
[1643551092599,15.778,95.16,95.078,6.0]
[1643551092798,15.778,95.16,95.079,0.25]
[1643551093622,15.74145807,95.16,95.079,0.25]
[1643551094621,2.95669142,95.159,95.079,0.25]
[1643551095625,36.55198926,95.163,95.079,0.25]
[1643551096224,39.50868068,95.163,95.079,0.25]
[1643551097625,39.50868068,95.163,95.078,6.0]
[1643551098326,39.50868068,95.163,95.079,0.25]
[1643551098525,15.779,95.16,95.079,0.25]
[1643551098927,2.95669142,95.159,95.079,0.25]
[1643551101130,2.95669142,95.159,95.078,6.0]
[1643551101628,2.95669142,95.159,95.068,154.1473]
[1643551101830,36.55198926,95.163,95.068,154.1473]
[1643551102029,36.55198926,95.163,95.078,6.0]
[1643551102230,36.55198926,95.163,95.078,111.3]
[1643551102629,36.55198926,95.163,95.068,48.8473]
[1643551102830,36.55198926,95.163,95.069,0.25]
[1643551103034,39.50868068,95.163,95.068,154.1473]
[1643551104031,15.779,95.16,95.078,6.0]
[1643551104430,15.779,95.16,95.079,0.25]
[1643551105030,15.779,95.16,95.068,48.8473]
[1643551105232,15.781,95.15,95.068,48.8473]
[1643551105634,2.95669142,95.149,95.069,0.25]
[1643551106236,2.95669142,95.149,95.068,48.8473]
[1643551106535,2.95669142,95.149,95.069,0.25]
[1643551107534,2.95669142,95.149,95.02,52.596]
[1643551107535,15.782,95.14,95.033,1.45950479]
[1643551107735,15.782,95.14,95.025,1.45950479]
[1643551107935,50.02754524,95.139,95.034,0.25]
[1643551108339,2.95669142,95.138,95.034,0.25]
[1643551108636,1.44585382,95.131,95.034,0.25]
[1643551108837,1.44585382,95.129,95.034,0.25]
[1643551109039,15.786,95.12,95.019,1.45950479]
[1643551109236,24.7923,95.119,95.021,0.25]
[1643551109438,24.7923,95.119,95.018,1.45950479]
[1643551109641,27.74899142,95.119,95.019,0.25]
[1643551109841,2.95669142,95.118,95.019,0.25]
[1643551110040,2.95669142,95.118,95.023,1.45950479]
[1643551110440,15.787,95.11,95.024,0.25]
[1643551110843,2.95669142,95.109,95.024,0.25]
[1643551111641,15.787,95.11,95.019,0.25]
[1643551111877,2.95669142,95.109,95.02,1.45950479]
[1643551112341,2.95669142,95.109,95.021,0.25]
[1643551113344,2.95669142,95.109,95.019,0.25]
[1643551113841,2.95669142,95.109,95.019,1.70950479]
[1643551114042,15.787,95.11,95.029,6.0]
[1643551114242,15.787,95.11,95.03,24.7087]
[1643551114442,51.93310119,95.13,95.031,105.3]
[1643551114643,51.93310119,95.13,95.041,6.0]
[1643551114843,51.93310119,95.13,95.042,23.494]
[1643551118746,51.93310119,95.13,95.042,23.244]
[1643551118948,2.95669142,95.129,95.043,0.25]
[1643551119949,2.95669142,95.129,95.042,23.244]
[1643551120149,15.785,95.12,95.042,23.244]
[1643551123358,15.785,95.12,95.043,0.25]
[1643551125558,2.95669142,95.129,95.043,0.25]
[1643551129184,2.95669142,95.129,95.042,23.244]
[1643551129386,15.785,95.12,95.042,23.244]
[1643551129787,2.95669142,95.119,95.042,23.244]
[1643551130185,1.44585382,95.124,95.043,0.25]
[1643551130386,36.14910119,95.13,95.052,6.0]
[1643551130585,36.14910119,95.13,95.043,0.25]
[1643551130988,2.95669142,95.129,95.043,0.25]
[1643551132487,1.44585382,95.127,95.052,6.0]
[1643551132687,1.44585382,95.127,95.053,23.5305]
[1643551132886,1.44585382,95.127,95.053,23.7805]
[1643551133087,1.44585382,95.128,95.053,23.7805]
[1643551133488,1.44585382,95.126,95.053,23.7805]
[1643551135287,1.44585382,95.127,95.053,23.7805]
[1643551135686,1.44585382,95.126,95.053,23.7805]
[1643551135886,1.44585382,95.124,95.053,23.7805]
[1643551136087,1.44585382,95.125,95.053,23.7805]
[1643551136491,1.44585382,95.123,95.053,23.7805]
[1643551137989,1.44585382,95.124,95.053,23.7805]
[1643551138191,1.44585382,95.123,95.053,23.7805]
[1643551138391,1.44585382,95.124,95.053,23.7805]
[1643551138891,1.44585382,95.124,95.053,23.5305]
[1643551139492,1.44585382,95.121,95.053,23.5305]
[1643551139893,2.95669142,95.12,95.053,23.5305]
[1643551141098,1.44585382,95.126,95.053,23.5305]
[1643551141296,1.44585382,95.126,95.054,0.25]
[1643551141697,1.44585382,95.126,95.053,23.5305]
[1643551141900,2.95669142,95.125,95.053,23.5305]
[1643551142100,1.44585382,95.12,95.053,23.5305]
[1643551142302,2.95669142,95.125,95.053,23.5305]
[1643551142303,1.44585382,95.121,95.053,23.5305]
[1643551142502,1.44585382,95.12,95.053,23.5305]
[1643551142802,1.44585382,95.122,95.053,23.5305]
[1643551143002,1.44585382,95.12,95.053,23.5305]
[1643551144208,1.44585382,95.117,95.053,23.5305]
[1643551144603,1.44585382,95.116,95.053,23.5305]
[1643551145003,1.44585382,95.117,95.053,23.5305]
[1643551145204,1.44585382,95.118,95.053,23.5305]
[1643551146405,4.40254524,95.117,95.053,23.5305]
[1643551146607,1.44585382,95.116,95.053,23.5305]
[1643551146812,1.44585382,95.115,95.053,23.5305]
[1643551147010,4.40254524,95.115,95.053,23.5305]
[1643551147408,2.95669142,95.114,95.053,23.5305]
[1643551147809,4.40254524,95.114,95.053,23.5305]
[1643551148110,2.95669142,95.113,95.053,23.5305]
[1643551148709,2.95669142,95.113,95.054,0.25]
[1643551148910,2.95669142,95.113,95.053,23.5305]
[1643551152015,1.44585382,95.117,95.053,23.5305]
[1643551152215,1.44585382,95.125,95.054,0.25]
[1643551152416,1.44585382,95.134,95.063,6.0]
[1643551152615,1.44585382,95.142,95.068,105.3]
[1643551152816,1.44585382,95.144,95.069,0.25]
[1643551153017,1.44585382,95.144,95.078,6.0]
[1643551153238,1.44585382,95.145,95.078,15.04]
[1643551153434,1.44585382,95.147,95.079,0.25]
[1643551153633,1.44585382,95.147,95.079,6.0]
[1643551153834,1.44585382,95.147,95.079,23.9078]
[1643551154233,1.44585382,95.153,95.079,23.9078]
[1643551156136,1.44585382,95.156,95.079,23.9078]
[1643551156636,10.52,95.155,95.079,23.9078]
[1643551158637,10.52,95.155,95.08,105.3]
[1643551158837,10.52,95.155,95.081,0.25]
[1643551160239,10.52,95.168,95.081,0.25]
[1643551160441,1.44585382,95.167,95.08,0.25]
[1643551160641,2.95669142,95.167,95.08,0.25]
[1643551161743,34.7968,95.168,95.08,0.25]
[1643551162342,34.7968,95.168,95.079,23.6578]
[1643551163743,34.7968,95.168,95.08,0.25]
[1643551168650,108.25669142,95.167,95.08,0.25]
[1643551168851,108.25669142,95.167,95.079,23.6578]
[1643551168852,15.779,95.16,95.079,23.6578]
[1643551169051,15.779,95.16,95.052,1.45950479]
[1643551169250,17.22485382,95.16,95.044,1.45950479]
[1643551169452,1.44585382,95.151,95.034,1.45950479]
[1643551169652,1.44585382,95.158,95.042,1.45950479]
[1643551169954,2.95669142,95.15,95.042,1.45950479]
[1643551170151,2.95669142,95.15,95.038,1.45950479]
[1643551170353,2.95669142,95.15,95.037,1.45950479]
[1643551170550,2.95669142,95.15,95.059,0.25]
[1643551170951,4.40254524,95.15,95.059,0.25]
[1643551171153,35.28544449,95.129,95.059,0.25]
[1643551172153,10.52,95.128,95.059,0.25]
[1643551172756,10.52,95.128,95.043,0.86369423]
[1643551174460,10.52,95.128,95.059,23.5215]
[1643551174860,10.52,95.128,95.06,0.25]
[1643551175262,10.52,95.128,95.059,23.5215]
[1643551181993,10.52,95.128,95.06,0.25]
[1643551198305,10.52,95.128,95.059,23.5215]
[1643551198508,2.95669142,95.127,95.059,23.5215]
[1643551199111,10.52,95.126,95.059,23.5215]
[1643551199710,10.52,95.126,95.06,0.25]
[1643551201615,10.52,95.126,95.07,105.3]
[1643551201812,10.52,95.126,95.071,24.34980479]
[1643551202011,10.52,95.126,95.081,6.0]
[1643551202211,10.52,95.146,95.082,105.3]
[1643551202412,41.86154289,95.145,95.083,22.6538]
[1643551203411,10.52,95.146,95.083,22.6538]